Workbook

Sheet Sheet1
A1: ხელფასი
A2: # | B2: გვარი, სახელი | C2: ხელფასი | D2: პრემია | E2: ჯამი | F2: დაკავება | G2: ხელზე | H2: შენიშვნა
A3: 1 | B3: ბაგრატიშვილი გივი | C3: 400 | D3: 200 | E3: =C3+D3 -> 600 | F3: =0.12*E3 -> 72 | G3: =E3-F3 -> 528
A4: 2 | B4: ბაზღაძე ნატო | C4: 220 | D4: 300 | E4: =C4+D4 -> 520 | F4: =0.12*E4 -> 62.4 | G4: =E4-F4 -> 457.6
A5: 3 | B5: ბლიაძე იოსებ | C5: 650 | D5: 100 | E5: 750 | F5: 90 | G5: 660
A6: 4 | B6: გოცირიძე გიორგი | C6: 700 | D6: 350 | E6: 1050 | F6: 126 | G6: 924
A7: 5 | B7: გურიელიძე გიგი | C7: 355 | E7: 355 | F7: 42.6 | G7: 312.4
A8: 6 | B8: ებანოიძე დავით | C8: 468 | D8: 420 | E8: 888 | F8: 106.56 | G8: 781.44
A9: 7 | B9: კავლელაშვილი გიორგი | C9: 590 | D9: 300 | E9: 890 | F9: 106.8 | G9: 783.2
A10: 8 | B10: კანკავა ლევან | C10: 670 | D10: 220 | E10: 890 | F10: 106.8 | G10: 783.2
A11: 9 | B11: კანკავა ჯაბა | C11: 540 | D11: 340 | E11: 880 | F11: 105.6 | G11: 774.4
A12: 10 | B12: ლორთქიფანიძე თამარ | C12: 440 | D12: 480 | E12: 920 | F12: 110.4 | G12: 809.6
C13: =SUM(C3:C12) -> 5033 | D13: =SUM(D3:D12) -> 2710 | E13: =SUM(E3:E12) -> 7743 | F13: =SUM(F3:F12) -> 929.16 | G13: =SUM(G3:G12) -> 6813.84
